fUST/lending_fUST_20250523
["ID","MTS","AMOUNT","RATE_DAILY","PERIOD"]
[362023750,1747938635226,-450.0,0.00019951,2]
[362023751,1747938635236,-419.1014355,0.00019951,2]
[362023752,1747938635246,-450.0,0.00019951,2]
[362023753,1747938635255,-450.0,0.00019951,2]
[362023754,1747938635265,-395.63942206,0.00019951,2]
[362023755,1747938635275,-450.0,0.00019951,2]
[362023756,1747938635284,-450.0,0.00019951,2]
[362023757,1747938635294,-450.0,0.00019951,2]
[362023758,1747938635305,-450.0,0.00019951,2]
[362023759,1747938635314,-450.0,0.00019951,2]
[362023760,1747938635324,-450.0,0.00019951,2]
[362023761,1747938635334,-450.0,0.00019951,2]
[362023762,1747938635344,-500.0,0.00019951,2]
[362023763,1747938635353,-450.0,0.00019951,2]
[362023764,1747938635363,-450.0,0.00019951,2]
[362023765,1747938635373,-430.0,0.00019951,2]
[362023766,1747938635383,-450.0,0.00019951,2]
[362023767,1747938635395,-450.0,0.00019951,2]
[362023768,1747938635404,-450.0,0.00019951,2]
[362023769,1747938635414,-450.0,0.00019951,2]
[362023770,1747938635424,-156.57142246,0.00019951,2]
[362023771,1747938635434,-450.0,0.00019951,2]
[362023772,1747938635444,-450.0,0.00019951,2]
[362023773,1747938635454,-430.0,0.00019951,2]
[362023774,1747938635465,-450.0,0.00019951,2]
[362023775,1747938635475,-450.0,0.00019951,2]
[362023776,1747938635485,-450.0,0.00019951,2]
[362023777,1747938635497,-450.0,0.00019951,2]
[362023778,1747938635507,-450.0,0.00019951,2]
[362023779,1747938635517,-450.0,0.00019951,2]
[362023780,1747938635527,-450.0,0.00019951,2]
[362023781,1747938635536,-450.0,0.00019951,2]
[362023782,1747938635546,-450.0,0.00019951,2]
[362023783,1747938635558,-323.05217977,0.00019951,2]
[362023784,1747938635568,-450.0,0.00019951,2]
[362023785,1747938635578,-450.0,0.00019951,2]
[362023786,1747938635588,-450.0,0.00019951,2]
[362023787,1747938635598,-430.0,0.00019951,2]
[362023788,1747938635608,-416.94892829,0.00019951,2]
[362023789,1747938635618,-450.0,0.00019951,2]
[362023790,1747938635627,-550.0,0.00019951,2]
[362023791,1747938635637,-430.0,0.00019951,2]
[362023792,1747938635647,-430.0,0.00019951,2]
[362023793,1747938635656,-450.0,0.00019951,2]
[362023794,1747938635666,-450.0,0.00019951,2]
[362023795,1747938635676,-430.0,0.00019951,2]
[362023796,1747938635686,-450.0,0.00019951,2]
[362023797,1747938635695,-450.0,0.00019951,2]
[362023798,1747938635705,-450.0,0.00019951,2]
[362023799,1747938635912,-450.0,0.00019951,2]
[362023800,1747938635924,-450.0,0.00019951,2]
[362023801,1747938635934,-404.45881087,0.00019951,2]
[362023802,1747938635943,-365.44539189,0.00019951,2]
[362023803,1747938635954,-450.0,0.00019951,2]
[362023804,1747938635963,-450.0,0.00019951,2]
[362023805,1747938635973,-450.0,0.00019951,2]
[362023806,1747938635983,-200.0,0.00019951,2]
[362023807,1747938635993,-300.0,0.00019951,2]
[362023808,1747938636003,-450.0,0.00019951,2]
[362023809,1747938636012,-450.0,0.00019951,2]
[362023810,1747938636022,-452.78568249,0.00019951,2]
[362023811,1747938636031,-450.0,0.00019951,2]
[362023812,1747938636041,-450.0,0.00019951,2]
[362023813,1747938636051,-450.0,0.00019951,2]
[362023814,1747938636060,-450.0,0.00019951,2]
[362023815,1747938636070,-450.0,0.00019951,2]
[362023816,1747938636079,-450.0,0.00019951,2]
[362023817,1747938636089,-450.0,0.00019951,2]
[362023818,1747938636099,-250.0,0.00019951,2]
[362023819,1747938636110,-381.76375969,0.00019951,2]
[362023820,1747938636122,-450.0,0.00019951,2]
[362023821,1747938636132,-552.01378937,0.00019951,2]
[362023822,1747938636143,-430.0,0.00019951,2]
[362023823,1747938636152,-450.0,0.00019951,2]
[362023824,1747938636163,-303.03216299,0.00019951,2]
[362023825,1747938636176,-450.0,0.00019951,2]
[362023826,1747938636185,-430.0,0.00019951,2]
[362023827,1747938636195,-450.0,0.00019951,2]
[362023828,1747938636205,-450.0,0.00019951,2]
[362023829,1747938636214,-351.05044979,0.00019951,2]
[362023830,1747938636224,-450.0,0.00019951,2]
[362023831,1747938636236,-450.0,0.00019951,2]
[362023832,1747938636248,-450.0,0.00019951,2]
[362023833,1747938636259,-450.0,0.00019951,2]
[362023834,1747938636268,-450.0,0.00019951,2]
[362023835,1747938636278,-596.24,0.00019951,2]
[362023836,1747938636288,-450.0,0.00019951,2]
[362023837,1747938636298,-450.0,0.00019951,2]
[362023838,1747938636308,-450.0,0.00019951,2]
[362023839,1747938636318,-450.0,0.00019951,2]
[362023840,1747938636341,-450.0,0.00019951,2]
[362023841,1747938636351,-450.0,0.00019951,2]
[362023842,1747938636362,-352.03157661,0.00019951,2]
[362023843,1747938636373,-450.0,0.00019951,2]
[362023844,1747938636383,-430.0,0.00019951,2]
[362023845,1747938636396,-450.0,0.00019951,2]
[362023846,1747938636407,-450.0,0.00019951,2]
[362023847,1747938636417,-430.0,0.00019951,2]
[362023848,1747938636429,-430.0,0.00019951,2]
[362023849,1747938636440,-450.0,0.00019951,2]
[362023850,1747938636450,-450.0,0.00019951,2]
[362023851,1747938636460,-450.0,0.00019951,2]
[362023852,1747938636471,-430.0,0.00019951,2]
[362023853,1747938636483,-450.0,0.00019951,2]
[362023854,1747938636493,-450.0,0.00019951,2]
[362023855,1747938636503,-352.74335367,0.00019951,2]
[362023856,1747938636514,-450.0,0.00019951,2]
[362023857,1747938636524,-450.0,0.00019951,2]
[362023858,1747938636534,-430.0,0.00019951,2]
[362023859,1747938636545,-362.14188417,0.00019951,2]
[362023860,1747938636558,-430.0,0.00019951,2]
[362023861,1747938636568,-205.68766391,0.00019951,2]
[362023862,1747938636579,-430.0,0.00019951,2]
[362023863,1747938636589,-450.0,0.00019951,2]
[362023864,1747938636600,-180.70007897,0.00019951,2]
[362023865,1747938636610,-450.0,0.00019951,2]
[362023866,1747938636620,-430.0,0.00019951,2]
[362023867,1747938636631,-430.0,0.00019951,2]
[362023868,1747938636641,-430.0,0.00019951,2]
[362023869,1747938636651,-274.17310331,0.00019951,2]
[362023870,1747938636662,-1000.0,0.00019951,2]
[362023871,1747938636672,-430.0,0.00019951,2]
[362023872,1747938636682,-186.68508386,0.00019951,2]
[362023873,1747938636692,-450.0,0.00019951,2]
[362023874,1747938636702,-450.0,0.00019951,2]
[362023875,1747938636712,-450.0,0.00019951,2]
[362023876,1747938636723,-430.0,0.00019951,2]
[362023877,1747938636733,-288.26323732,0.00019951,2]
[362023878,1747938636744,-430.0,0.00019951,2]
[362023879,1747938636754,-430.0,0.00019951,2]
[362023880,1747938636764,-450.0,0.00019951,2]
[362023881,1747938636774,-450.0,0.00019951,2]
[362023882,1747938636784,-450.0,0.00019951,2]
[362023883,1747938636794,-450.0,0.00019951,2]
[362023884,1747938636808,-450.0,0.00019951,2]
[362023885,1747938636818,-450.0,0.00019951,2]
[362023886,1747938636828,-470.0,0.00019951,2]
[362023887,1747938636838,-450.0,0.00019951,2]
[362023888,1747938636847,-363.43963406,0.00019951,2]
[362023889,1747938636858,-450.0,0.00019951,2]
[362023890,1747938636869,-450.0,0.00019951,2]
[362023891,1747938636879,-438.63360321,0.00019951,2]
[362023892,1747938636890,-450.0,0.00019951,2]
[362023893,1747938636900,-450.0,0.00019951,2]
[362023894,1747938636910,-450.0,0.00019951,2]
[362023895,1747938636920,-450.0,0.00019951,2]
[362023896,1747938636930,-450.0,0.00019951,2]
[362023897,1747938636940,-430.0,0.00019951,2]
[362023898,1747938636950,-401.17442534,0.00019951,2]
[362023899,1747938636965,-450.0,0.00019951,2]
[362023900,1747938636975,-450.0,0.00019951,2]
[362023901,1747938636985,-450.0,0.00019951,2]
[362023902,1747938636995,-450.0,0.00019951,2]
[362023903,1747938637006,-430.0,0.00019951,2]
[362023904,1747938637016,-450.0,0.00019951,2]
[362023905,1747938637026,-450.0,0.00019951,2]
[362023906,1747938637036,-400.0,0.00019951,2]
[362023907,1747938637046,-450.0,0.00019951,2]
[362023908,1747938637059,-450.0,0.00019951,2]
[362023909,1747938637069,-450.0,0.00019951,2]
[362023910,1747938637080,-450.0,0.00019951,2]
[362023911,1747938637090,-812.63,0.00019951,2]
[362023912,1747938637100,-450.0,0.00019951,2]
[362023913,1747938637111,-450.0,0.00019951,2]
[362023914,1747938637121,-450.0,0.00019951,2]
[362023915,1747938637131,-400.0,0.00019951,2]
[362023916,1747938637142,-400.0,0.00019951,2]
[362023917,1747938637152,-400.0,0.00019951,2]
[362023918,1747938637162,-450.0,0.00019951,2]
[362023919,1747938637173,-450.0,0.00019951,2]
[362023920,1747938637183,-450.0,0.00019951,2]
[362023921,1747938637193,-400.0,0.00019951,2]
[362023922,1747938637203,-450.0,0.00019951,2]
[362023923,1747938637213,-430.0,0.00019951,2]
[362023924,1747938637224,-450.0,0.00019951,2]
[362023925,1747938637234,-450.0,0.00019951,2]
[362023926,1747938637244,-456.53913042,0.00019951,2]
[362023927,1747938637254,-450.0,0.00019951,2]
[362023928,1747938637265,-450.0,0.00019951,2]
[362023929,1747938637275,-430.0,0.00019951,2]
[362023931,1747938637285,-450.0,0.00019951,2]
[362023933,1747938637296,-450.0,0.00019951,2]
[362023934,1747938637311,-450.0,0.00019951,2]
[362023936,1747938637323,-450.0,0.00019951,2]
[362023938,1747938637333,-450.0,0.00019952,2]
[362023939,1747938637342,-450.0,0.00019952,2]
[362023941,1747938637353,-518.57683958,0.00019952,2]
[362023943,1747938637363,-853.64,0.00019952,2]
[362023944,1747938637374,-654.0,0.00019952,2]
[362023945,1747938637384,-430.0,0.00019952,2]
[362023946,1747938637398,-450.0,0.00019952,2]
[362023947,1747938637408,-430.0,0.00019952,2]
[362023948,1747938637418,-430.0,0.00019952,2]
[362023949,1747938637430,-450.0,0.00019952,2]
[362023950,1747938637440,-450.0,0.00019952,2]
[362023951,1747938637451,-430.0,0.0002,2]
[362023952,1747938637461,-854.93,0.0002,2]
[362023954,1747938637471,-1150.13,0.0002,2]
[362023956,1747938637482,-1427.39,0.0002,2]
[362023959,1747938637492,-2842.71,0.0002,2]
[362023960,1747938637502,-467.16,0.0002,2]
[362023963,1747938637513,-430.0,0.0002,2]
[362023965,1747938637522,-918.76,0.0002,2]
[362023966,1747938637532,-448.23,0.0002,2]
[362023968,1747938637542,-722.25,0.0002,2]
[362023970,1747938637556,-430.0,0.0002,2]
[362023972,1747938637566,-15050.32901162,0.0002,2]
[362023974,1747938637578,-430.0,0.0002,2]
[362023976,1747938637588,-304.0,0.0002,2]
[362023978,1747938637598,-1541.25675734,0.0002,2]
[362023980,1747938637608,-1047.05,0.0002,2]
[362023983,1747938637620,-519.69,0.0002,2]
[362023985,1747938637630,-646.58,0.0002,2]
[362023987,1747938637640,-242.4648664,0.0002,4]
[362023989,1747938637651,-430.0,0.0002,2]
[362023991,1747938637661,-661.62,0.0002,2]
[362023993,1747938637671,-5406.93,0.0002,2]
[362023995,1747938637681,-430.0,0.0002,2]
[362023997,1747938637691,-1662.13,0.0002,2]
[362023999,1747938637701,-806.46,0.0002,2]
[362024001,1747938637710,-430.0,0.0002,2]
[362024003,1747938637720,-1325.31,0.0002,2]
[362024005,1747938637730,-430.0,0.0002,2]
[362024007,1747938637740,-3314.96,0.0002,2]
[362024009,1747938637750,-430.0,0.0002,2]
[362024010,1747938637760,-516.66,0.0002,2]
[362024012,1747938637770,-572.41,0.0002,2]
[362024014,1747938637780,-564.26,0.0002,2]
[362024016,1747938637791,-420.0,0.00020098,2]
[362024018,1747938637802,-388.30236844,0.00020224,2]
[362024020,1747938637812,-450.0,0.00020224,2]
[362024022,1747938637821,-570.0,0.00020224,2]
[362024024,1747938637830,-510.0,0.00020224,2]
[362024026,1747938637840,-430.0,0.00020224,2]
[362024028,1747938637850,-170.53737934,0.00020224,2]
[362024030,1747938637860,-430.0,0.00020224,2]
[362024032,1747938637870,-564.42969503,0.00020224,2]
[362024034,1747938637879,-613.41,0.00020224,2]
[362024036,1747938637889,-521.56,0.00020224,2]
[362024038,1747938637899,-269.7066422,0.00020224,2]
[362024040,1747938637909,-430.0,0.00020224,2]
[362024042,1747938637919,-226.95,0.00020224,2]
[362024044,1747938637928,-430.0,0.00020224,2]
[362024046,1747938637938,-430.0,0.00020224,2]
[362024048,1747938637948,-470.0,0.00020224,2]
[362024051,1747938637958,-470.0,0.00020224,2]
[362024053,1747938637968,-470.0,0.00020224,2]
[362024055,1747938637977,-470.0,0.00020224,2]
[362024057,1747938637987,-470.0,0.00020224,2]
[362024059,1747938637999,-470.0,0.00020224,2]
[362024061,1747938638009,-470.0,0.00020224,2]
[362024063,1747938638019,-470.0,0.00020224,2]
[362024065,1747938638029,-430.0,0.00020224,2]
[362024067,1747938638039,-500.0,0.00020224,2]
[362024069,1747938638048,-430.0,0.00020224,2]
[362024071,1747938638060,-470.0,0.00020224,2]
[362024073,1747938638070,-470.0,0.00020224,2]
[362024075,1747938638080,-430.0,0.00020224,2]
[362024077,1747938638089,-533.88,0.00020224,2]
[362024079,1747938638099,-430.0,0.00020224,2]
[362024081,1747938638109,-410.0,0.00020224,2]
[362024083,1747938638119,-337.18098878,0.00020224,2]
[362024085,1747938638130,-1038.14,0.00020224,2]
[362024087,1747938638140,-470.0,0.00020224,2]
[362024089,1747938638153,-470.0,0.00020224,2]
[362024091,1747938638164,-470.0,0.00020224,2]
[362024094,1747938638174,-486.91,0.00020224,2]
[362024096,1747938638184,-470.0,0.00020224,2]
[362024097,1747938638194,-430.0,0.00020224,2]
[362024099,1747938638203,-1108.09,0.00020224,2]
[362024101,1747938638214,-430.0,0.00020224,2]
[362024103,1747938638224,-470.0,0.00020224,2]
[362024105,1747938638233,-430.0,0.00020224,2]
[362024107,1747938638243,-470.0,0.00020224,2]
[362024109,1747938638254,-470.0,0.00020224,2]
[362024111,1747938638268,-470.0,0.00020224,2]
[362024114,1747938638280,-470.0,0.00020224,2]
[362024116,1747938638290,-470.0,0.00020224,2]
[362024118,1747938638302,-470.0,0.00020224,2]
[362024120,1747938638317,-430.0,0.00020224,2]
[362024122,1747938638327,-476.75,0.00020224,2]
[362024124,1747938638337,-549.04,0.00020224,2]
[362024126,1747938638347,-430.0,0.00020224,2]
[362024128,1747938638357,-470.0,0.00020224,2]
[362024130,1747938638367,-922.95,0.00020224,2]
[362024132,1747938638377,-430.0,0.00020224,2]
[362024134,1747938638390,-1576.53,0.00020224,2]
[362024136,1747938638400,-470.0,0.00020224,2]
[362024138,1747938638410,-470.0,0.00020224,2]
[362024140,1747938638420,-430.0,0.00020224,2]
[362024142,1747938638430,-432.68,0.00020224,2]
[362024144,1747938638440,-597.94,0.00020224,2]
[362024146,1747938638450,-1589.74,0.00020224,2]
[362024148,1747938638460,-470.0,0.00020224,2]
[362024151,1747938638470,-430.0,0.00020224,2]
[362024153,1747938638480,-1067.49,0.00020224,2]
[362024154,1747938638491,-430.0,0.00020224,2]
[362024157,1747938638501,-430.0,0.00020224,2]
[362024159,1747938638510,-677.05,0.00020224,2]
[362024161,1747938638520,-572.6586822,0.00020224,2]
[362024163,1747938638529,-2373.35,0.00020224,2]
[362024165,1747938638540,-577.6,0.00020224,2]
[362024167,1747938638549,-430.0,0.00020224,2]
[362024169,1747938638560,-430.0,0.00020224,2]
[362024171,1747938638569,-1145.41,0.00020224,2]
[362024173,1747938638578,-430.0,0.00020224,2]
[362024175,1747938638593,-1524.66,0.00020224,2]
[362024177,1747938638603,-430.0,0.00020224,2]
[362024179,1747938638613,-812.43,0.00020224,2]
[362024181,1747938638622,-430.0,0.00020224,2]
[362024183,1747938638632,-557.38,0.00020224,2]
[362024185,1747938638641,-248.44,0.00020224,2]
[362024187,1747938638651,-470.0,0.00020224,2]
[362024190,1747938638661,-1282.81,0.00020224,2]
[362024192,1747938638671,-470.0,0.00020224,2]
[362024194,1747938638681,-470.0,0.00020224,2]
[362024196,1747938638691,-687.32,0.00020224,2]
[362024198,1747938638700,-470.0,0.00020224,2]
[362024200,1747938638711,-430.0,0.00020224,2]
[362024202,1747938638720,-447.61,0.00020224,2]
[362024204,1747938638730,-473.28,0.00020224,2]
[362024206,1747938638740,-938.74,0.00020224,2]
[362024208,1747938638750,-430.0,0.00020224,2]
[362024210,1747938638759,-430.0,0.00020225,2]
[362024212,1747938638769,-430.0,0.00020225,2]
[362024214,1747938638778,-430.0,0.00020225,2]
[362024216,1747938638787,-430.0,0.00020225,2]
[362024218,1747938638797,-430.0,0.00020225,2]
[362024220,1747938638808,-430.0,0.00020225,2]
[362024222,1747938638817,-152.63395759,0.00020225,2]
[362024224,1747938638826,-430.0,0.00020225,2]
[362024226,1747938638835,-470.0,0.00020225,2]
[362024228,1747938638845,-470.0,0.00020225,2]
[362024230,1747938638855,-372.19491668,0.00020225,2]
[362024232,1747938638864,-470.0,0.00020225,2]
[362024234,1747938638875,-430.0,0.00020225,2]
[362024236,1747938638884,-329.03655529,0.00020225,2]
[362024238,1747938638895,-430.0,0.00020225,2]
[362024240,1747938638904,-470.0,0.00020225,2]
[362024242,1747938638914,-450.0,0.00020225,2]
[362024244,1747938638924,-450.44794241,0.00020225,2]
[362024246,1747938638934,-1000.0,0.00020225,2]
[362024248,1747938638943,-470.0,0.00020225,2]
[362024250,1747938638953,-470.0,0.00020225,2]
[362024252,1747938638962,-470.0,0.00020225,2]
[362024254,1747938638972,-220.0,0.00020225,2]
[362024256,1747938638981,-430.0,0.00020225,2]
[362024258,1747938638991,-430.0,0.00020225,2]
[362024260,1747938639001,-812.63,0.00020225,2]
[362024262,1747938639010,-430.0,0.00020225,2]
[362024264,1747938639020,-430.0,0.00020225,2]
[362024266,1747938639029,-853.64,0.00020226,2]
[362024268,1747938639039,-654.0,0.00020226,2]
[362024270,1747938639048,-430.0,0.00020226,2]
[362024273,1747938639060,-430.0,0.00020226,2]
[362024275,1747938639070,-430.0,0.00020226,2]
[362024277,1747938639079,-430.0,0.00020273,2]
[362024279,1747938639089,-854.93,0.00020273,2]
[362024281,1747938639099,-1150.13,0.00020273,2]
[362024283,1747938639108,-1427.39,0.00020273,2]
[362024285,1747938639119,-2842.71,0.00020273,2]
[362024287,1747938639128,-467.16,0.00020273,2]
[362024289,1747938639138,-430.0,0.00020273,2]
[362024291,1747938639148,-918.76,0.00020273,2]
[362024293,1747938639157,-448.23,0.00020273,2]
[362024295,1747938639166,-722.25,0.00020273,2]
[362024297,1747938639176,-430.0,0.00020273,2]
[362024299,1747938639185,-430.0,0.00020273,2]
[362024301,1747938639194,-1047.05,0.00020273,2]
[362024303,1747938639204,-519.69,0.00020273,2]
[362024305,1747938639213,-646.58,0.00020273,2]
[362024307,1747938639224,-430.0,0.00020273,2]
[362024309,1747938639234,-661.62,0.00020273,2]
[362024311,1747938639244,-5406.93,0.00020273,2]
[362024314,1747938639255,-430.0,0.00020273,2]
[362024316,1747938639264,-1662.13,0.00020273,2]
[362024318,1747938639273,-806.46,0.00020273,2]
[362024321,1747938639283,-430.0,0.00020273,2]
[362024323,1747938639292,-1325.31,0.00020273,2]
[362024325,1747938639302,-430.0,0.00020273,2]
[362024327,1747938639312,-3314.96,0.00020273,2]
[362024329,1747938639321,-430.0,0.00020273,2]
[362024331,1747938639331,-516.66,0.00020273,2]
[362024333,1747938639340,-572.41,0.00020273,2]
[362024335,1747938639350,-564.26,0.00020273,2]
[362024338,1747938639360,-1297.37510761,0.000203,3]
[362024340,1747938639370,-1297.37510748,0.000203,3]
[362024342,1747938639379,-1297.37510748,0.000203,3]
[362024344,1747938639390,-1297.37510748,0.000203,3]
[362024347,1747938639401,-1297.37510748,0.000203,3]
[362024350,1747938639410,-1297.37510748,0.000203,3]
[362024352,1747938639420,-1297.37510748,0.000203,3]
[362024354,1747938639429,-1297.37510748,0.00020348,3]
[362024356,1747938639439,-430.0,0.00020498,2]
[362024358,1747938639449,-430.0,0.00020498,2]
[362024360,1747938639458,-613.41,0.00020498,2]
[362024362,1747938639468,-521.56,0.00020498,2]
[362024364,1747938639477,-430.0,0.00020498,2]
[362024367,1747938639487,-430.0,0.00020498,2]
[362024370,1747938639497,-430.0,0.00020498,2]
[362024390,1747938639507,-430.0,0.00020498,2]
[362024392,1747938639672,-500.0,0.00020498,2]
[362024394,1747938639682,-228.06,0.00020498,2]
[362024397,1747938639692,-430.0,0.00020498,2]
[362024399,1747938639702,-533.88,0.00020498,2]
[362024401,1747938639712,-430.0,0.00020498,2]
[362024403,1747938639722,-1038.14,0.00020498,2]
[362024405,1747938639732,-486.91,0.00020498,2]
[362024407,1747938639742,-430.0,0.00020498,2]
[362024409,1747938639752,-1108.09,0.00020498,2]
[362024413,1747938639762,-410.65,0.00020498,2]
[362024416,1747938639785,-430.0,0.00020498,2]
[362024418,1747938639796,-460.4,0.00020498,2]
[362024420,1747938639807,-476.75,0.00020498,2]
[362024422,1747938639818,-549.04,0.00020498,2]
[362024424,1747938639828,-430.0,0.00020498,2]
[362024426,1747938639838,-922.95,0.00020498,2]
[362024428,1747938639848,-430.0,0.00020498,2]
[362024430,1747938639859,-1576.53,0.00020498,2]
[362024432,1747938639869,-430.0,0.00020498,2]
[362024434,1747938639879,-432.68,0.00020498,2]
[362024437,1747938639890,-597.94,0.00020498,2]
[362024439,1747938639900,-1589.74,0.00020498,2]
[362024441,1747938639910,-430.0,0.00020498,2]
[362024443,1747938639920,-1067.49,0.00020498,2]
[362024445,1747938639930,-430.0,0.00020498,2]
[362024447,1747938639939,-454.69,0.00020498,2]
[362024449,1747938639949,-677.05,0.00020498,2]
[362024451,1747938639960,-2373.35,0.00020498,2]
[362024453,1747938639970,-577.6,0.00020498,2]
[362024455,1747938639980,-430.0,0.00020498,2]
[362024457,1747938639990,-430.0,0.00020498,2]
[362024459,1747938640000,-1145.41,0.00020498,2]
[362024461,1747938640010,-430.0,0.00020498,2]
[362024464,1747938640020,-1524.66,0.00020498,2]
[362024466,1747938640030,-430.0,0.00020498,2]
[362024468,1747938640040,-812.43,0.00020498,2]
[362024470,1747938640050,-430.0,0.00020498,2]
[362024472,1747938640060,-557.38,0.00020498,2]
[362024474,1747938640070,-1282.81,0.00020498,2]
[362024476,1747938640080,-687.32,0.00020498,2]
[362024478,1747938640090,-430.0,0.00020498,2]
[362024480,1747938640100,-447.61,0.00020498,2]
[362024482,1747938640110,-938.74,0.00020498,2]
[362024484,1747938640119,-430.0,0.00020498,2]
[362024486,1747938640130,-450.0,0.00020499,2]
[362024488,1747938640140,-351.0726124,0.00020499,2]
[362024491,1747938640150,-450.0,0.00020499,2]
[362024493,1747938640160,-450.0,0.00020499,2]
[362024495,1747938640170,-450.0,0.00020499,2]
[362024497,1747938640180,-542.88019991,0.00020499,2]
[362024499,1747938640190,-350.68537429,0.00020499,2]
[362024501,1747938640199,-450.0,0.00020499,2]
[362024503,1747938640210,-450.0,0.00020499,2]
[362024505,1747938640219,-450.0,0.00020499,2]
[362024507,1747938640230,-450.0,0.00020499,2]
[362024509,1747938640240,-154.30874281,0.00020499,2]
[362024511,1747938640250,-430.0,0.00020499,2]
[362024514,1747938640260,-430.0,0.00020499,2]
[362024516,1747938640270,-345.36,0.00020499,2]
[362024518,1747938640280,-200.6,0.00020499,2]
[362024520,1747938640289,-430.0,0.00020499,2]
[362024522,1747938640299,-430.0,0.00020499,2]
[362024524,1747938640310,-430.0,0.00020499,2]
[362024525,1747938640320,-158.01,0.00020499,2]
[362024526,1747938640330,-430.0,0.00020499,2]
[362024528,1747938640342,-430.0,0.00020499,2]
[362024530,1747938640352,-430.0,0.00020499,2]
[362024532,1747938640362,-812.63,0.00020499,2]
[362024534,1747938640372,-214.58242212,0.00020499,2]
[362024536,1747938640388,-430.0,0.00020499,2]
[362024537,1747938640400,-853.64,0.000205,2]
[362024539,1747938640410,-654.0,0.000205,2]
[362024540,1747938640420,-430.0,0.000205,2]
[362024541,1747938640431,-430.0,0.000205,2]
[362024542,1747938640441,-430.0,0.000205,2]
[362024543,1747938640452,-430.0,0.00020547,2]
[362024544,1747938640464,-854.93,0.00020547,2]
[362024545,1747938640474,-1150.13,0.00020547,2]
[362024546,1747938640484,-1427.39,0.00020547,2]
[362024547,1747938640494,-2842.71,0.00020547,2]
[362024548,1747938640504,-467.16,0.00020547,2]
[362024550,1747938640514,-430.0,0.00020547,2]
[362024552,1747938640525,-918.76,0.00020547,2]
[362024554,1747938640534,-448.23,0.00020547,2]
[362024556,1747938640545,-722.25,0.00020547,2]
[362024558,1747938640555,-430.0,0.00020547,2]
[362024560,1747938640565,-430.0,0.00020547,2]
[362024562,1747938640574,-1047.05,0.00020547,2]
[362024564,1747938640584,-519.69,0.00020547,2]
[362024567,1747938640594,-646.58,0.00020547,2]
[362024569,1747938640605,-430.0,0.00020547,2]
[362024570,1747938640614,-661.62,0.00020547,2]
[362024571,1747938640624,-5406.93,0.00020547,2]
[362024572,1747938640634,-430.0,0.00020547,2]
[362024573,1747938640643,-1662.13,0.00020547,2]
[362024574,1747938640653,-806.46,0.00020547,2]
[362024575,1747938640663,-430.0,0.00020547,2]
[362024576,1747938640673,-1325.31,0.00020547,2]
[362024577,1747938640683,-430.0,0.00020547,2]